Cogmind - Beta 13 @@@ ROGUE MODE // 2024.04.01 @ 15:23:27 Player: SuperDrops Result: Destroyed by as-48618 with Assembled Rifle Performance ------------- Evolutions (0) 0 Regions Visited (0) 0 Robots Destroyed (0) 0 Value Destroyed (0) 0 Prototype IDs (0) 0 Alien Tech Used (0) 0 Bonus (0) 0 TOTAL SCORE: 0 Bonus ------- None Cogmind --------- Core Integrity 0/250 Matter 300/300 Energy 99/100 System Corruption 3% Temperature Cool (0) Movement Core (50) Location -11/Scrapyard Parts ------- > --- POWER (1) -------- (None) > --- PROPULSION (2) --- (None) > --- UTILITY (2) ------ (None) > --- WEAPON (2) ------- (None) > --- INVENTORY (5) ---- Light Ion Engine Light Treads Compact Wheel Small Matter Pod (50) EM Pulse Gun Peak State ------------ > --- POWER ------------ Light Ion Engine > --- PROPULSION ------- Aluminum Leg Aluminum Leg > --- UTILITY ---------- Small Storage Unit > --- WEAPON ----------- Light Assault Rifle > --- INVENTORY -------- Light Treads Light Treads EM Pulse Gun Small Laser [Rating: 5] Favorites ----------- Power Light Ion Engine Engine Light Ion Engine Propulsion Aluminum Leg Leg Aluminum Leg Utility Small Storage Unit Storage Small Storage Unit Weapon Light Assault Rifle Ballistic Gun Light Assault Rifle Build | -11 ------- Run | Yrd Slots Evolved . | . Power . | . Propulsion . | . Utility . | . Weapon . | . Parts Attached 5 | 5 Power 1 | 1 Engine 1 | 1 Core . | . Reactor . | . Propulsion 2 | 2 Treads . | . Leg 2 | 2 Wheel . | . Hover . | . Flight . | . Utility 1 | 1 Device . | . Storage 1 | 1 Processor . | . Hackware . | . Protection . | . Artifact . | . Weapon 1 | 1 Energy Gun . | . Energy Cannon . | . Ballistic Gun 1 | 1 Ballistic Cannon . | . Launcher . | . Special Weapon . | . Impact Weapon . | . Slashing Weapon . | . Piercing Weapon . | . Special Melee Weapon . | . Unidentified Prototypes . | . Parts Lost 5 | 5 Power 1 | 1 Propulsion 2 | 2 Utility 1 | 1 Weapon 1 | 1 Highest Loss Streak 5 | 5 To Critical Strikes . | . Average Slot Usage (%) . | . Naked Turns . | . Heaviest Build 9 | 9 Greatest Support 20 | 20 Greatest Overweight (x) . | . Average Overweight (x) . | . Largest Inventory Capacity 8 | 8 Average Capacity 7 | 7 Most Carried 8 | 8 Average Carried 6 | 6 Final Capacity 5 | 5 Final Carried 5 | 5 Class Distribution -------------------- None Dominant Class ---------------- None Resources | -11 ----------- Run | Yrd Matter Collected 218 | 218 Remotely . | . Salvage Created 20 | 20 Parts . | . Haulers Intercepted . | . Recyclers Shooed . | . Parts Field Recycled . | . Retrieved Matter . | . Parts Self-Destructed . | . Prevented . | . Kills | -11 ------- Run | Yrd Combat Hostiles Destroyed 1 | 1 Melee 1 | 1 Classes Destroyed 1 | 1 Assembled 1 | 1 Best Kill Streak 1 | 1 Combat Bots Only 1 | 1 Max Kills in Single Turn 1 | 1 Gunslinging . | . Exploded . | . Melee 1 | 1 Uniques/NPCs Destroyed . | . Combat | -11 -------- Run | Yrd Hostile Shots Fired 57 | 57 Missed 19 | 19 Damage Taken 723 | 723 Core 259 | 259 Absorbed by Shields . | . Core Remaining (%) . | . Volleys Fired . | . Largest . | . Hottest . | . Shots Fired . | . Gun . | . Cannon . | . Launcher . | . Special . | . Kinetic . | . Thermal . | . Explosive . | . Electromagnetic . | . Robot Hit Streak . | . Robot Miss Streak . | . Penetration Max . | . Secondary Targets . | . Shots Hit Robots . | . Core Hits 7 | 7 Critical Kills . | . Critical Parts Destroyed . | . Critical Strikes . | . Melee Attacks . | . Impact . | . Slashing . | . Piercing . | . Sneak Attacks . | . Combat Hostiles . | . Follow-up Attacks . | . Damage Inflicted 24 | 24 Guns . | . Cannons . | . Explosions . | . Melee . | . Ramming 24 | 24 Kinetic . | . Thermal . | . Explosive . | . Electromagnetic . | . Impact . | . Slashing . | . Piercing . | . Highest Corruption 3 | 3 Average Corruption 2 | 2 Corruption Purged . | . Corruption Blocked . | . Overload Shots . | . Overflow Damage . | . Projectiles . | . Explosions . | . Melee . | . Knockbacks . | . Impact . | . Kinetic . | . Secondary . | . Self-Inflicted Damage 4 | 4 Shots . | . Rammed 6 | 6 Targets Rammed 16 | 16 Kicked 10 | 10 Crushed . | . Highest Temperature 15 | 15 Average Temperature 15 | 15 Received Heat Transfer 140 | 140 Siege Activations . | . Robots Corrupted . | . Combat Hostiles . | . Parts Fried . | . Impact Corruptions . | . Robots Melted . | . Combat Hostiles . | . Parts Melted . | . Heat Transferred . | . Parts Sabotaged . | . Parts Stolen . | . Parts Stripped . | . Power Chain Reactions . | . Alert | -11 ------- Run | Yrd Peak Influence . | . Initial . | . Average . | . Maximum Alert Level . | . Low Security (%) 100 | 100 Level 1 . | . Level 2 . | . Level 3 . | . Level 4 . | . Level 5 . | . High Security . | . Max Security . | . Squads Dispatched . | . Investigation . | . Extermination . | . Reinforcement . | . Assault . | . Garrison . | . Intercept . | . Searches Triggered . | . Construction Impeded . | . Haulers Reinforced . | . Active Scanning Responses . | . Cargo Convoy Interrupts . | . Stealth | -11 --------- Run | Yrd Distress Signals . | . Communications Jammed . | . Distress Signals . | . Times Spotted 15 | 15 Peak Tracking Total 13 | 13 Tactical Retreats 1 | 1 Traps | -11 ------- Run | Yrd Traps Triggered . | . Indirectly . | . Trap Hack Attempts . | . Triggered . | . Disarmed . | . Reprogrammed . | . Reused . | . Traps Extracted . | . Installed . | . Triggered . | . Machines | -11 ---------- Run | Yrd Machines Disabled . | . Max in Single Turn . | . Machines Repaired . | . Machines Dismantled . | . Machines Sabotaged . | . Overloaded Fab Kills . | . Hacking | -11 --------- Run | Yrd Machines Accessed . | . Terminals . | . Fabricators . | . Repair Stations . | . Recycling Units . | . Scanalyzers . | . Garrison Access . | . Total Hacks . | . Successful . | . Failed . | . Catastrophic . | . Database Lockouts . | . Manual . | . Terminals . | . Fabricators . | . Repair Stations . | . Recycling Units . | . Scanalyzers . | . Garrison Access . | . Terminal Hacks . | . Fabricator Hacks . | . Repair Station Hacks . | . Recycling Unit Hacks . | . Scanalyzer . | . Garrison Access Hacks . | . Unauthorized Hacks . | . Terminals . | . Fabricators . | . Repair Stations . | . Recycling Units . | . Scanalyzers . | . Garrison Access . | . Data Cores Recovered . | . Used . | . Hacking Detections . | . Full Trace Events . | . Feedback Events . | . Feedback Blocked . | . Robot Schematics Acquired . | . Robots Built . | . Authchips . | . Time . | . Total Robot Build Rating . | . Part Schematics Acquired . | . Parts Built . | . Authchips . | . Time . | . Total Part Build Rating . | . Parts Repaired . | . Time . | . Parts Recycled . | . Recycled Matter . | . Retrieved Matter . | . Retrieved Components . | . Parts Scanalyzed . | . Part Schematics Acquired . | . Parts Damaged . | . Bothacking | -11 ------------ Run | Yrd Used RIF Installer . | . Robots Hacked . | . Non-combat . | . Combat . | . Robot Hacks Applied . | . Relay Couplers Released . | . Fabnet Peak Effective % . | . Robots Rewired . | . Allies Hacked . | . Hacks Repelled . | . Allies | -11 -------- Run | Yrd Total Allies . | . Largest Group . | . Highest-Rated Group . | . Highest-Rated Ally . | . Total Orders . | . Ally Attacks . | . Total Damage . | . Kills . | . Allies Corrupted . | . Allies Melted . | . Intel | -11 ------- Run | Yrd Robot Analysis Total . | . Derelict Logs Recovered . | . Drone Launches . | . Drone Recoveries . | . Exploration | -11 ------------- Run | Yrd Turns Passed 1067 | 1067 Spaces Moved 150 | 150 Core 12 | 12 Treads . | . Legs 138 | 138 Wheels . | . Hover . | . Flight . | . Fastest Speed 50 | 50 Average Speed 114 | 114 Slowest Speed 120 | 120 Overloaded Moves . | . Propulsion Burnouts . | . Robots Hopped . | . Cave-ins Triggered . | . Exploration Rate (%) 17 | 17 Regions Visited . Branch Regions . Pre-discovered Areas . | . Known Exits Taken . | . Unknown Exits Taken . | . Scrap Searched . | . Spaces Dug . | . Terrain Destroyed . | . Melee . | . Projectile . | . AOE . | . Terrain Rammed . | . Walls Destroyed . | . Machines Disabled . | . Actions | -11 --------- Run | Yrd Total 1043 | 1043 Wait 859 | 859 Move 150 | 150 Hop . | . Pick Up 13 | 13 Fast Attach . | . Attach 5 | 5 Detach . | . Swap . | . Drop . | . Fire . | . Melee . | . Ram 6 | 6 Kick 10 | 10 Crush . | . Escape Stasis . | . Rewire . | . Trap . | . Miscellaneous . | . Route ------- -11/Scrapyard (discovered 1 exit: [*Mat]) History --------- Turn | Location | Event 4 | -11/Scrapyard | Discovered new exit (range 15) 997 | -11/Scrapyard | Assembled infested the area 1066 | -11/Scrapyard | Core integrity fell below 50% 1068 | -11/Scrapyard | Core integrity fell below 20% 1068 | -11/Scrapyard | Destroyed by as-48618 with Assembled Rifle Last Messages --------------- Acquired Sml. Matter Pod. Aluminum Leg destroyed. System corrupted by crushing effect (+2). Knocked back. Kicked as-98860. Knocked back. Kicked as-72786. Lgt. Ion Engine destroyed. Kicked as-72786. Kicked as-72786 out of the way. Aluminum Leg destroyed. Lgt. Assault Rifle destroyed. Slammed into as-98860. Destabilizing: System corrupted (+1). Slammed into as-87858. Slammed into as-83129. as-83129 destroyed. [Achievement: Fist Fight] Sml. Storage Unit destroyed. Acquired 13 matter. Map ----- +----------------------------------------------------+ | ?????????????????????????????????????????????????? | | ?????????????????????????????????????????????????? | | ?????????????????????????????????????????????????? | | ?????????????????????????????????????????????????? | | ?????????????????????????????????????????????????? | | ?????????????????????????????????????????????????? | | ?????????????????????????? ?????????????????????? | | ?????????????????????????? ?????????????????????? | | ?????????????????????????? ?????????????????????? | | ?????????????????????????# #????????????????????? | | ????????????????????????? ?????? ???????????? | | ?????????????????????????# #??????% ??????????? | | ?????????????????????????#| #?????#% ??????????? | | ?????????????????????????#%=#????? % ??????????? | | ?????????????????????????# #????? ???????????? | | ?????????????????????????# #????? ???????????? | | ?????????????????????????# #?????# ! ???????????? | | ?????????????????????????# #?????#%%#???????????? | | ?????????????????????????# #?????#!*#???????????? | | ?????????????????????????# #?????# #???????????? | | ??????????????????????#### ####??# #???????????? | | ?????????##########???# #??# #???????????? | | ?????????# #???# #??# ######??????? | | ?????????# #???# % #### # #??????? | | ?????????# #####aa #??????? | | ??# aaaaa%@ #??????? | | ??# aaaaa ####### #??????? | | ?????# ### ##### < #?????## ########? | | ?????????# #???# % #??????# # #? | | ?????????# #???##########??????# # #? | | ?????????#### ####???????????????????# #? | | ????????????# ???????????????????????# # #? | | ????????????# ????????????????????????# # #? | | ????????????# ????????????????????????# ## #? | | ????????????#?????????????????????????# #?######? | | ??????????????????????????????????????# #???????? | | ??????????????????????????????????????# #???????? | | ??????????????????????????????????????# #???????? | | ??????????????????????????????????????# #??####?? | | ??????????????????????????????????????# #?## ?? | | ?????????????????????????????########## #?# ## | | ????????????????????????????## # #?# # | | ????????????????????????????# # #?# | | ????????????????????????????# # #??# | | ????????????????????????????# #??#### # | | ????????????????????????????# # ##### | | ????????????????????????????# # # | | ????????????????????????????# # ## | | ????????????????????????????##### # ##### ##? | | ????????????????????????????????####### #???###?? | +----------------------------------------------------+ Best States ------------- Heat Dissipation 25 Energy Generation 10 Energy Capacity 125 Matter Stores 298 Matter Capacity 300 Sight Range 16 Terrain Scan Density 10 Evasion (%) 55 Item Schematics ----------------- None Robot Schematics ------------------ None Fabricated ------------ Nothing Alien Tech Used ----------------- None Achievements -------------- Fist Fight Challenges ------------ None Game ------ Seed CoolingSubdwellerLeg Manual? 0 Play Time 00:05:34 Cumulative 3.5 hours Start 2024.04.01 @ 15:20:36 End 2024.04.01 @ 15:23:27 Sessions 0 Manual Loads 0 Difficulty Rogue Special Mode None Game No. 10 Rogue 10 Adventurer 0 Explorer 0 Win Type - Total 0 Types 0/0/0/0/0/0/0/0/0 Lore% 9 Gallery% 5 Achievement% 5 Wizard Run 0 Options --------- Layout 1 ASCII 0 Keyboard 0 Movement Numpad Keybinds 0 Fullscreen 2 Font 24/Proggy Map View 50x35 Zoom Use 0% Tactical HUD 0 Map Filters NONE Filters NONE Steam 1 RUN: 3ed2a88d-0d27-4fc0-a246-d421c414f4de